Workbook

Sheet Instructions
B7: :

Sheet Definitions
B1: Term | C1: Definition
A2: Employment status | B2: Full-time | C2: Employees who are engaged to work a minimum number of hours as defined by your organisation as full-time (e.g. 37.5, 38 or 40 hours per week) and are either permanent employees or on a fixed-term contract. The actual hours of work for an employee in a particular job or industry are agreed between the employer and the employee and/or set by an award or registered agreement.
B3: Part-time | C3: Employees who are engaged to work on average, less than 38 hours per week or what constitutes full-time hours in your specific organisation. These employees usually work regular hours each week, are entitled to the same benefits as a full-time employee but on a pro-rata basis, and are either permanent employees or on a fixed-term contract.
B4: Fixed-term contract | C4: An individual employed on a fixed-term or non-ongoing contract in either a full-time or part-time capacity for the purposes of paragraph (a) of the definition of ‘employer’ under the Workplace Gender Equality Act 2012 (Act). Important note: reporting on independent contractors is no longer required.
B5: Casual | C5: An employee that usually works irregular hours, has no guaranteed hours of work, doesn't get paid sick or annual leave and can end employment without notice, unless notice is required by a registered agreement, award or employment contract.
B6: Part-year | C6: Did not work the full 12 months prior to the date chosen for the workplace profile data.
A7: Remuneration | B7: Annualised | C7: If an employee has not worked the full 12 months prior to the date chosen for the workplace profile, the employee’s salary needs to be calculated as if the employee had worked the full 12 months. This is referred to as the annualised salary.
B8: Full-Time Equivalent (FTE) fraction | C8: Option 1 | D8: Please copy and paste the employee's FTE fraction provided in the employer's system.
C9: Option 2 | D9: If an employee has not worked full-time hours during the 12 months prior to the date chosen for the workplace profile, calculate the employee’s salary as if the employee had worked full-time hours. The number of total hours worked for the year, divided by the maximum number of hours in a full-time schedule for the year as defined by law for your organisation. For example, if the normal schedule for a year is defined as 1824 hours (38 hrs per week * 48 weeks per year), someone who works 30 hours per week for the whole year could have an FTE of 0.78 (30 hrs per week * 48 weeks per year = 1440/1824). Someone who works 30 hours per week for part of the year (e.g. 40 weeks) would have an FTE of 0.66 (30 hours per week * 40 weeks per year = 1200/1824).
B10: Pro-rata | C10: A proportional amount of earnings based on an employee's employment status (for example, part-time or casual), or based on the duration of their employment.The earnings amount needs to be converted to the FTE amount, as if the employee had worked full-time hours, and/or annualised as if the employee had worked for the full 12 months covered in your report.
B11: Fixed | C11: The actual amount paid, for example a one-off payment that is not paid at a proportional rate based on an employees conditions of employment. These amounts do not need to be converted to an FTE or annualised amount.
B12: Ordinary hours in a working week | C12: Your organisation's standard "full-time" number of hours per week, for example 37.5 hours, 38 hours or 40 hours.
B13: Base salary | C13: The annual salary before tax including all salary sacrificed items but excluding allowances, superannuation and any other additional payments. It is the minimum earnings before tax, also known as gross base salary.
B14: Total remuneration | C14: Includes base salary plus any additional benefits whether payable directly or indirectly, whether in cash or in a form other than cash. It includes bonus payments (including performance pay), superannuation, discretionary pay, overtime, allowances and any other additional payments (for example share allocations).
B15: Bonus/performance pay | C15: A payment in addition to base salary that is usually communicated with the employee at the beginning of a period, for example an annual target incentive. It is performance related and based on a performance management process. Payment is usually made on an annual basis.
B16: Superannuation | C16: A payment to an employee’s regulated benefit fund available for her/him in retirement. Employers are required by law to pay a proportion of an employee's salary and wages into a superannuation fund. This is the amount contributed by the employer to the employee’s defined contribution (or defined benefit) fund.
B17: Discretionary pay | C17: A payment over and above the requirements of the position that is not part of the performance pay system. Sometimes referred to as “ad-hoc”, it is not normally quantified in advance and is usually paid after the event.
B18: Overtime | C18: A payment in addition to base salary made to employees when they are required to work more than the ordinary hours of work or outside the ordinary spread of hours.
B19: Allowances | C19: Other payments made in addition to base salary, for example first-aid and meal allowances.

Sheet Part-time| Contract| Part-year

Sheet Casual
A1: This calculator converts the base salary and total remuneration of a casual employee to annualised full-time equivalent amounts.
B2: 1. Input your data below (based on actual earnings and actual hours worked) * for the 12 months prior to the date chosen for the workplace profile data. | J2: 2. Copy and paste the values below in your workplace profile
A3: Employee unique identifier | B3: Total base salary paid for the 12 months* (includes casual loading) ($) | C3: Total bonus paid for the 12 months* ($) | D3: Total superannuation paid for the 12 months* ($) | E3: Total discretionary pay for the 12 months* ($) | F3: Total overtime paid for the 12 months* ($) | G3: Total other allowances paid for the 12 months* ($) | H3: Total hours worked for the 12 months* (Insert the total number of hours that the employee actually worked in the 12 months*) | I3: Ordinary days or hours in a working week (Insert your organisation's standard "full-time" number of hours per week e.g. 38 hours, 37.5 hours, 35 hours) | J3: Annualised full-time equivalent base salary ($) | K3: Fixed Remuneration ($) | L3: Annualised full-time equivalent total remuneration ($) | M3: FTE hours in year
M4: Excel formula: =(I7*52)
J5: =IFERROR(((($B5/$H5)*$M5)),0) -> 0 | K5: =F5+G5+E5 -> 0 | L5: =IFERROR((($B5/$H5)*$M5)+(($C5/$H5)*$M5)+(($D5/$H5)*$M5)+($E5)+($G5)+($F5),0) -> 0 | M5: =($I5*52) -> 0
J6: =IFERROR(((($B6/$H6)*$M6)),0) -> 0 | K6: =F6+G6+E6 -> 0 | L6: =IFERROR((($B6/$H6)*$M6)+(($C6/$H6)*$M6)+(($D6/$H6)*$M6)+($E6)+($G6)+($F6),0) -> 0 | M6: =($I6*52) -> 0
J7: 0 | K7: 0 | L7: 0 | M7: 0
J8: 0 | K8: 0 | L8: 0 | M8: 0
J9: 0 | K9: 0 | L9: 0 | M9: 0
J10: 0 | K10: 0 | L10: 0 | M10: 0
J11: 0 | K11: 0 | L11: 0 | M11: 0
J12: 0 | K12: =F12+G12+E12 -> 0 | L12: 0 | M12: 0
J13: 0 | K13: 0 | L13: 0 | M13: 0
J14: 0 | K14: 0 | L14: 0 | M14: 0
J15: 0 | K15: 0 | L15: 0 | M15: 0
J16: 0 | K16: 0 | L16: 0 | M16: 0
J17: 0 | K17: 0 | L17: 0 | M17: 0
J18: 0 | K18: 0 | L18: 0 | M18: 0
J19: 0 | K19: 0 | L19: 0 | M19: 0
J20: 0 | K20: 0 | L20: 0 | M20: 0
J21: 0 | K21: 0 | L21: 0 | M21: 0
J22: 0 | K22: 0 | L22: 0 | M22: 0
J23: 0 | K23: 0 | L23: 0 | M23: 0
J24: 0 | K24: 0 | L24: 0 | M24: 0
J25: 0 | K25: 0 | L25: 0 | M25: 0
J26: 0 | K26: 0 | L26: 0 | M26: 0
J27: 0 | K27: 0 | L27: 0 | M27: 0
J28: 0 | K28: 0 | L28: 0 | M28: 0
J29: 0 | K29: 0 | L29: 0 | M29: 0
J30: 0 | K30: 0 | L30: 0 | M30: 0
J31: 0 | K31: 0 | L31: 0 | M31: 0
J32: 0 | K32: 0 | L32: 0 | M32: 0
J33: 0 | K33: 0 | L33: 0 | M33: 0
J34: 0 | K34: 0 | L34: 0 | M34: 0
J35: 0 | K35: 0 | L35: 0 | M35: 0
J36: 0 | K36: 0 | L36: 0 | M36: 0
J37: 0 | K37: 0 | L37: 0 | M37: 0
J38: 0 | K38: 0 | L38: 0 | M38: 0
J39: 0 | K39: 0 | L39: 0 | M39: 0
J40: 0 | K40: 0 | L40: 0 | M40: 0
J41: 0 | K41: 0 | L41: 0 | M41: 0
J42: 0 | K42: 0 | L42: 0 | M42: 0
J43: 0 | K43: 0 | L43: 0 | M43: 0
J44: 0 | K44: 0 | L44: 0 | M44: 0
J45: 0 | K45: 0 | L45: 0 | M45: 0
J46: 0 | K46: 0 | L46: 0 | M46: 0
J47: 0 | K47: 0 | L47: 0 | M47: 0
J48: 0 | K48: 0 | L48: 0 | M48: 0
J49: 0 | K49: 0 | L49: 0 | M49: 0
J50: 0 | K50: 0 | L50: 0 | M50: 0
J51: 0 | K51: 0 | L51: 0 | M51: 0
J52: 0 | K52: 0 | L52: 0 | M52: 0
J53: 0 | K53: 0 | L53: 0 | M53: 0
J54: 0 | K54: 0 | L54: 0 | M54: 0
J55: 0 | K55: 0 | L55: 0 | M55: 0
J56: 0 | K56: 0 | L56: 0 | M56: 0
J57: 0 | K57: 0 | L57: 0 | M57: 0
J58: 0 | K58: 0 | L58: 0 | M58: 0
J59: 0 | K59: 0 | L59: 0 | M59: 0
J60: 0 | K60: 0 | L60: 0 | M60: 0
J61: 0 | K61: 0 | L61: 0 | M61: 0
J62: 0 | K62: 0 | L62: 0 | M62: 0
J63: 0 | K63: 0 | L63: 0 | M63: 0
J64: 0 | K64: 0 | L64: 0 | M64: 0
J65: 0 | K65: 0 | L65: 0 | M65: 0
J66: 0 | K66: 0 | L66: 0 | M66: 0
J67: 0 | K67: 0 | L67: 0 | M67: 0
J68: 0 | K68: 0 | L68: 0 | M68: 0
J69: 0 | K69: 0 | L69: 0 | M69: 0
J70: =IFERROR(((($B70/$H70)*$M70)),0) -> 0 | K70: =F70+G70+E70 -> 0 | L70: =IFERROR((($B70/$H70)*$M70)+(($C70/$H70)*$M70)+(($D70/$H70)*$M70)+($E70)+($G70)+($F70),0) -> 0 | M70: =($I70*52) -> 0
J71: 0 | K71: 0 | L71: 0 | M71: 0
J72: 0 | K72: 0 | L72: 0 | M72: 0
J73: 0 | K73: 0 | L73: 0 | M73: 0
J74: 0 | K74: 0 | L74: 0 | M74: 0
J75: 0 | K75: 0 | L75: 0 | M75: 0
J76: 0 | K76: 0 | L76: 0 | M76: 0
J77: 0 | K77: 0 | L77: 0 | M77: 0
J78: 0 | K78: 0 | L78: 0 | M78: 0
J79: 0 | K79: 0 | L79: 0 | M79: 0
J80: 0 | K80: 0 | L80: 0 | M80: 0
J81: 0 | K81: 0 | L81: 0 | M81: 0
J82: 0 | K82: 0 | L82: 0 | M82: 0
J83: 0 | K83: 0 | L83: 0 | M83: 0
J84: 0 | K84: 0 | L84: 0 | M84: 0
J85: 0 | K85: 0 | L85: 0 | M85: 0
J86: 0 | K86: 0 | L86: 0 | M86: 0
J87: 0 | K87: 0 | L87: 0 | M87: 0
J88: 0 | K88: 0 | L88: 0 | M88: 0
J89: 0 | K89: 0 | L89: 0 | M89: 0
J90: 0 | K90: 0 | L90: 0 | M90: 0
J91: 0 | K91: 0 | L91: 0 | M91: 0
J92: 0 | K92: 0 | L92: 0 | M92: 0
J93: 0 | K93: 0 | L93: 0 | M93: 0
J94: 0 | K94: 0 | L94: 0 | M94: 0
J95: 0 | K95: 0 | L95: 0 | M95: 0
J96: 0 | K96: 0 | L96: 0 | M96: 0
J97: 0 | K97: 0 | L97: 0 | M97: 0
J98: 0 | K98: 0 | L98: 0 | M98: 0
J99: 0 | K99: 0 | L99: 0 | M99: 0
J100: 0 | K100: 0 | L100: 0 | M100: 0
J101: 0 | K101: 0 | L101: 0 | M101: 0
J102: 0 | K102: 0 | L102: 0 | M102: 0
J103: 0 | K103: 0 | L103: 0 | M103: 0
J104: 0 | K104: 0 | L104: 0 | M104: 0
J105: 0 | K105: 0 | L105: 0 | M105: 0
J106: 0 | K106: 0 | L106: 0 | M106: 0
J107: 0 | K107: 0 | L107: 0 | M107: 0
J108: 0 | K108: 0 | L108: 0 | M108: 0
J109: 0 | K109: 0 | L109: 0 | M109: 0
J110: 0 | K110: 0 | L110: 0 | M110: 0
J111: 0 | K111: 0 | L111: 0 | M111: 0
J112: 0 | K112: 0 | L112: 0 | M112: 0
J113: 0 | K113: 0 | L113: 0 | M113: 0
J114: 0 | K114: 0 | L114: 0 | M114: 0
J115: 0 | K115: 0 | L115: 0 | M115: 0
J116: 0 | K116: 0 | L116: 0 | M116: 0
J117: 0 | K117: 0 | L117: 0 | M117: 0
J118: 0 | K118: 0 | L118: 0 | M118: 0
J119: 0 | K119: 0 | L119: 0 | M119: 0
J120: 0 | K120: 0 | L120: 0 | M120: 0
J121: 0 | K121: 0 | L121: 0 | M121: 0
J122: 0 | K122: 0 | L122: 0 | M122: 0
J123: 0 | K123: 0 | L123: 0 | M123: 0
J124: 0 | K124: 0 | L124: 0 | M124: 0
J125: 0 | K125: 0 | L125: 0 | M125: 0
J126: 0 | K126: 0 | L126: 0 | M126: 0
J127: 0 | K127: 0 | L127: 0 | M127: 0
J128: 0 | K128: 0 | L128: 0 | M128: 0
J129: 0 | K129: 0 | L129: 0 | M129: 0
J130: 0 | K130: 0 | L130: 0 | M130: 0
J131: 0 | K131: 0 | L131: 0 | M131: 0
J132: 0 | K132: 0 | L132: 0 | M132: 0
J133: 0 | K133: 0 | L133: 0 | M133: 0
J134: =IFERROR(((($B134/$H134)*$M134)),0) -> 0 | K134: =F134+G134+E134 -> 0 | L134: =IFERROR((($B134/$H134)*$M134)+(($C134/$H134)*$M134)+(($D134/$H134)*$M134)+($E134)+($G134)+($F134),0) -> 0 | M134: =($I134*52) -> 0
J135: 0 | K135: 0 | L135: 0 | M135: 0
J136: 0 | K136: 0 | L136: 0 | M136: 0
J137: 0 | K137: 0 | L137: 0 | M137: 0
J138: 0 | K138: 0 | L138: 0 | M138: 0
J139: 0 | K139: 0 | L139: 0 | M139: 0
J140: 0 | K140: 0 | L140: 0 | M140: 0
J141: 0 | K141: 0 | L141: 0 | M141: 0
J142: 0 | K142: 0 | L142: 0 | M142: 0
J143: 0 | K143: 0 | L143: 0 | M143: 0
J144: 0 | K144: 0 | L144: 0 | M144: 0
J145: 0 | K145: 0 | L145: 0 | M145: 0
J146: 0 | K146: 0 | L146: 0 | M146: 0
J147: 0 | K147: 0 | L147: 0 | M147: 0
J148: 0 | K148: 0 | L148: 0 | M148: 0
J149: 0 | K149: 0 | L149: 0 | M149: 0
J150: 0 | K150: 0 | L150: 0 | M150: 0
J151: 0 | K151: 0 | L151: 0 | M151: 0
J152: 0 | K152: 0 | L152: 0 | M152: 0
J153: 0 | K153: 0 | L153: 0 | M153: 0
J154: 0 | K154: 0 | L154: 0 | M154: 0
J155: 0 | K155: 0 | L155: 0 | M155: 0
J156: 0 | K156: 0 | L156: 0 | M156: 0
J157: 0 | K157: 0 | L157: 0 | M157: 0
J158: 0 | K158: 0 | L158: 0 | M158: 0
J159: 0 | K159: 0 | L159: 0 | M159: 0
J160: 0 | K160: 0 | L160: 0 | M160: 0
J161: 0 | K161: 0 | L161: 0 | M161: 0
J162: 0 | K162: 0 | L162: 0 | M162: 0
J163: 0 | K163: 0 | L163: 0 | M163: 0
J164: 0 | K164: 0 | L164: 0 | M164: 0
J165: 0 | K165: 0 | L165: 0 | M165: 0
J166: 0 | K166: 0 | L166: 0 | M166: 0
J167: 0 | K167: 0 | L167: 0 | M167: 0
J168: 0 | K168: 0 | L168: 0 | M168: 0
J169: 0 | K169: 0 | L169: 0 | M169: 0
J170: 0 | K170: 0 | L170: 0 | M170: 0
J171: 0 | K171: 0 | L171: 0 | M171: 0
J172: 0 | K172: 0 | L172: 0 | M172: 0
J173: 0 | K173: 0 | L173: 0 | M173: 0
J174: 0 | K174: 0 | L174: 0 | M174: 0
J175: 0 | K175: 0 | L175: 0 | M175: 0
J176: 0 | K176: 0 | L176: 0 | M176: 0
J177: 0 | K177: 0 | L177: 0 | M177: 0
J178: 0 | K178: 0 | L178: 0 | M178: 0
J179: 0 | K179: 0 | L179: 0 | M179: 0
J180: 0 | K180: 0 | L180: 0 | M180: 0
J181: 0 | K181: 0 | L181: 0 | M181: 0
J182: 0 | K182: 0 | L182: 0 | M182: 0
J183: 0 | K183: 0 | L183: 0 | M183: 0
J184: 0 | K184: 0 | L184: 0 | M184: 0
J185: 0 | K185: 0 | L185: 0 | M185: 0
J186: 0 | K186: 0 | L186: 0 | M186: 0
J187: 0 | K187: 0 | L187: 0 | M187: 0
J188: 0 | K188: 0 | L188: 0 | M188: 0
J189: 0 | K189: 0 | L189: 0 | M189: 0
J190: 0 | K190: 0 | L190: 0 | M190: 0
J191: 0 | K191: 0 | L191: 0 | M191: 0
J192: 0 | K192: 0 | L192: 0 | M192: 0
J193: 0 | K193: 0 | L193: 0 | M193: 0
J194: 0 | K194: 0 | L194: 0 | M194: 0
J195: 0 | K195: 0 | L195: 0 | M195: 0
J196: 0 | K196: 0 | L196: 0 | M196: 0
J197: 0 | K197: 0 | L197: 0 | M197: 0
J198: =IFERROR(((($B198/$H198)*$M198)),0) -> 0 | K198: =F198+G198+E198 -> 0 | L198: =IFERROR((($B198/$H198)*$M198)+(($C198/$H198)*$M198)+(($D198/$H198)*$M198)+($E198)+($G198)+($F198),0) -> 0 | M198: =($I198*52) -> 0
J199: 0 | K199: 0 | L199: 0 | M199: 0
J200: 0 | K200: 0 | L200: 0 | M200: 0
... 4300 more rows

Sheet EXAMPLE - Casual
A1: EXAMPLE: Review the two examples below for casual employees.
B2: 1. Input your data below (based on actual earnings and actual hours worked) * for the 12 months prior to the date chosen for the workplace profile data. | J2: 2. Copy and paste the below values in your workplace profile
A3: EXAMPLE | B3: Total base salary paid for the 12 months* ($) | C3: Total bonus paid for the 12 months* ($) | D3: Total superannuation paid for the 12 months* ($) | E3: Total discretionary pay for the 12 months* ($) | F3: Total overtime paid for the 12 months* ($) | G3: Total other allowances paid for the 12 months* ($) | H3: Total hours worked for the 12 months* (Insert the total number of hours that the employee actually worked in the 12 months*) | I3: Ordinary days or hours in a working week (Insert your organisation's standard "full-time" number of hours per week e.g. 38 hours, 37.5 hours, 35 hours) | J3: Annualised full-time equivalent base salary ($) | K3: Fixed Remuneration ($) | L3: Annualised full-time equivalent total remuneration ($) | M3: FTE hours in year
M4: Excel formula: =(I7*52)
A5: Casual employee #1 | B5: 18534 | D5: 1760.73 | H5: 520 | I5: 38 | J5: =((($B5/$H5)*$M5)) -> 70429.2 | K5: =F5+G5+E5 -> 0 | L5: =IFERROR((($B5/$H5)*$M5)+(($C5/$H5)*$M5)+(($D5/$H5)*$M5)+($E5)+($G5)+($F5),0) -> 77119.974 | M5: =($I5*52) -> 1976
A6: Casual employee #2 | B6: 35488 | F6: 200 | H6: 800 | I6: 35 | J6: 80735.2 | K6: =F6+G6+E6 -> 200 | L6: =IFERROR((($B6/$H6)*$M6)+(($C6/$H6)*$M6)+(($D6/$H6)*$M6)+($E6)+($G6)+($F6),0) -> 80935.2 | M6: =($I6*52) -> 1820

Sheet EXAMPLE - PT Con Part-yr
A1: EXAMPLE: Review the three examples below for: - Part-year employee - Part-time employee - Contract employee
B2: 1. Input your fixed and pro-rata amounts below. Pro-rata will be automatically converted to full-time equivalent (FTE) amounts. * for the 12 months prior to the date chosen for the workplace profile data. Use the 'Casual' calculator where an employee has had more than one employment status (eg. changed from casual to part-time) or varied regular part-time hours. | N2: 2. To annualise pro-rata amounts: Option 1 (Recommended) : Insert the commencement date and date chosen for workplace profile data. Enter the total number of weeks of unpaid leave taken in column P, if applicable. Option 2: you can override the calculation in the cell and use the annualised FTE fraction in your system (which reflects the portion of the year worked as well as standard weekly hours). You do not need to put dates in columns N and O. Choose Option 1 OR Option 2 | R2: 3. Copy and paste the below values into your workplace profile
A3: EXAMPLE | C3: Total bonus paid for the 12 months* ($) (The employee may receive both) | E3: Total discretionary pay for the 12 months* ($) | G3: Total other allowances paid for the 12 months* ($) | I3: Total superannuation paid for the 12 months* ($) (ordinary superannuation contributions should be entered into the Pro-rata column. Only enter non-pro-rata payments into the Fixed column) | K3: Total overtime paid for the 12 months* ($) | L3: Use either: HOURS in both columns OR DAYS in both columns | N3: Option 1 (Recommended): (do not enter any value if using Option 2) | Q3: Option 2 (do not enter any value if using Option 1) | R3: Annualised, full-time equivalent base salary ($) | S3: Fixed Remuneration ($) | T3: Annualised, full-time equivalent total remuneration ($)
B4: Total base salary paid for the 12 months ($) | C4: Fixed | D4: Pro-rata | E4: Fixed | F4: Pro-rata | G4: Fixed | H4: Pro-rata | I4: Fixed (enter the actual amount paid to an employee who worked the full 12 months AND full-time ordinary hours.) | J4: Pro-rata (enter actual amount paid to an employee who did not work a full 12 months AND/OR full-time ordinary hours.) | K4: Fixed | L4: Actual days or hours the employee worked per week (Insert the employee's number of hours or days worked per week). | M4: Ordinary days or hours in a working week (Insert your organisation's standard "full-time" number of hours or days per week). | N4: Employee's commencement date (DD/MM/YYYY) | O4: Date chosen for workplace profile data (from 1 April to 31 March) (DD/MM/YYYY) | P4: Periods of any unpaid leave in weeks (between Employee's commencement date and date chosen for workplace profile data) | Q4: FTE fraction (Once overridden with a value, the formula in the FTE cells will not reapply. If you need to update the FTE value or decide to use Option 2, you will need to use another row).
A5: Part-year employee (OPTION 1) | B5: 31567 | D5: 2000 | F5: 500 | J5: 2998.87 | L5: 38 | M5: 38 | N5: 2016-01-01 | O5: 2016-04-25 | Q5: =($L5/$M5)*((IF(($O5-$N5)/7<52,((($O5-$N5)/7)-P5),(52-P5)))/52) -> 0.3159340659 | R5: =(($B5/$Q5)) -> 99916.41739 | S5: =C5+E5+G5+I5+K5 -> 0 | T5: =(($B5/$Q5)+($C5)+($D5/$Q5)+($E5)+($F5/$Q5)+($G5)+($H5/$Q5)+($I5)+($J5/$Q5)+($K5)) -> 117321.5363
A6: Contract employee (OPTION 1) | B6: 87000 | G6: 480 | I6: 8265 | L6: 40 | M6: 40 | N6: 2015-08-13 | O6: 2016-04-25 | Q6: =($L6/$M6)*((IF(($O6-$N6)/7<52,($O6-$N6)/7,52))/52) -> 0.7032967033 | R6: =(($B6/$Q6)) -> 123703.125 | S6: =C6+E6+G6+I6+K6 -> 8745 | T6: =(($B6/$Q6)+($C6)+($D6/$Q6)+($E6)+($F6/$Q6)+($G6)+($H6/$Q6)+($I6)+($J6/$Q6)+($K6)) -> 132448.125
A7: Part-year employee with unpaid leave (OPTION 1) | B7: 50000 | D7: 2000 | F7: 5000 | J7: 2998.87 | L7: 36 | M7: 38 | N7: 2015-07-23 | O7: 2016-04-25 | P7: 2 | Q7: =($L7/$M7)*((IF(($O7-$N7)/7<52,((($O7-$N7)/7)-P7),(52-P7)))/52) -> 0.6844997108 | R7: 73046.04985 | S7: 0 | T7: 87653.60898
A8: Part-time employee (OPTION 2) | B8: 53456 | J8: 5078.32 | L8: 3 | M8: 5 | Q8: 0.6 | R8: 89093.33333 | S8: 0 | T8: 97557.2
